[Event "Live Chess"]
[Site "Chess.com"]
[Date "2024.06.02"]
[Round "-"]
[White "TheSmoulderingMaster"]
[Black "defenderalist"]
[Result "1/2-1/2"]
[WhiteElo "1772"]
[BlackElo "1554"]
[TimeControl "300"]
[EndTime "5:42:34 PDT"]
[Termination "Game drawn by repetition"]

1. e4 {[%clk 0:04:58.1]} 1... c5 {[%clk 0:04:58.3]} 2. Nf3 {[%clk 0:04:56.7]}
2... d6 {[%clk 0:04:58.2]} 3. d4 {[%clk 0:04:55.7]} 3... cxd4 {[%clk 0:04:57.4]}
4. Nxd4 {[%clk 0:04:53.2]} 4... Nc6 {[%clk 0:04:57.3]} 5. Nc3 {[%clk 0:04:52]}
5... Nf6 {[%clk 0:04:56.3]} 6. Be3 {[%clk 0:04:51.1]} 6... a6 {[%clk 0:04:55.9]}
7. f3 {[%clk 0:04:50.4]} 7... e6 {[%clk 0:04:53.5]} 8. Qd2 {[%clk 0:04:49.2]}
8... Be7 {[%clk 0:04:52.5]} 9. O-O-O {[%clk 0:04:48.2]} 9... b5 {[%clk
0:04:51.9]} 10. g4 {[%clk 0:04:47.3]} 10... Nxd4 {[%clk 0:04:51.1]} 11. Bxd4
{[%clk 0:04:46]} 11... b4 {[%clk 0:04:42.4]} 12. Ne2 {[%clk 0:04:43.9]} 12... a5
{[%clk 0:04:40.3]} 13. Ng3 {[%clk 0:04:42.8]} 13... Nd7 {[%clk 0:04:38.4]} 14.
h4 {[%clk 0:04:41.3]} 14... Qc7 {[%clk 0:04:34.4]} 15. g5 {[%clk 0:04:38.4]}
15... Nc5 {[%clk 0:04:31.9]} 16. f4 {[%clk 0:04:34.5]} 16... Ba6 {[%clk
0:04:23.6]} 17. Bxa6 {[%clk 0:04:31]} 17... Rxa6 {[%clk 0:04:21.1]} 18. f5
{[%clk 0:04:30.1]} 18... e5 {[%clk 0:04:15.6]} 19. Bxc5 {[%clk 0:04:26.8]} 19...
Qxc5 {[%clk 0:04:13.8]} 20. f6 {[%clk 0:04:24.7]} 20... gxf6 {[%clk 0:04:10]}
21. gxf6 {[%clk 0:04:24]} 21... Bxf6 {[%clk 0:04:08.9]} 22. Nf5 {[%clk
0:04:23.2]} 22... Rc6 {[%clk 0:03:53.1]} 23. Rh2 {[%clk 0:04:20.5]} 23... Be7
{[%clk 0:03:48]} 24. Rf2 {[%clk 0:03:53.6]} 24... a4 {[%clk 0:03:44.5]} 25. Rdf1
{[%clk 0:03:47.3]} 25... b3 {[%clk 0:03:43.2]} 26. axb3 {[%clk 0:03:46.3]} 26...
axb3 {[%clk 0:03:41.7]} 27. c3 {[%clk 0:03:45.8]} 27... Ra6 {[%clk 0:03:32.6]}
28. Qd3 {[%clk 0:03:35.2]} 28... Bxh4 {[%clk 0:03:25.7]} 29. Nxh4 {[%clk
0:03:27.9]} 29... Ra1+ {[%clk 0:03:14.6]} 30. Kd2 {[%clk 0:03:26.1]} 30... Rxf1
{[%clk 0:03:13]} 31. Rxf1 {[%clk 0:03:23.6]} 31... Rg8 {[%clk 0:03:07.3]} 32.
Nf5 {[%clk 0:03:19.2]} 32... Rg2+ {[%clk 0:03:04.2]} 33. Kd1 {[%clk 0:03:12.1]}
33... Kd7 {[%clk 0:02:55.4]} 34. Ne3 {[%clk 0:03:06.9]} 34... Rxb2 {[%clk
0:02:50.8]} 35. Rxf7+ {[%clk 0:03:00.7]} 35... Ke8 {[%clk 0:02:49.8]} 36. Rb7
{[%clk 0:02:53.6]} 36... Qa3 {[%clk 0:02:36.9]} 37. Qb5+ {[%clk 0:02:48.6]}
37... Kf8 {[%clk 0:02:34.1]} 38. Rb8+ {[%clk 0:02:46.1]} 38... Kg7 {[%clk
0:02:32.9]} 39. Nf5+ {[%clk 0:02:44.6]} 39... Kf6 {[%clk 0:02:28.3]} 40. Rf8+
{[%clk 0:02:39.1]} 40... Kg5 {[%clk 0:02:27.1]} 41. Rg8+ {[%clk 0:02:35.5]}
41... Kf4 {[%clk 0:02:23.8]} 42. Qf1+ {[%clk 0:02:33.3]} 42... Kxe4 {[%clk
0:02:20.9]} 43. Rg4+ {[%clk 0:02:28.8]} 43... Kd5 {[%clk 0:02:15.7]} 44. Qd3+
{[%clk 0:02:26.6]} 44... Ke6 {[%clk 0:02:13]} 45. Ng7+ {[%clk 0:02:24.1]} 45...
Ke7 {[%clk 0:02:07.9]} 46. Nf5+ {[%clk 0:02:16]} 46... Ke6 {[%clk 0:02:06.9]}
47. Ng7+ {[%clk 0:02:09.9]} 47... Ke7 {[%clk 0:02:02.2]} 48. Nf5+ {[%clk
0:02:03]} 48... Ke6 {[%clk 0:02:01.3]} 1/2-1/2

[Event "Live Chess"]
[Site "Chess.com"]
[Date "2024.06.02"]
[Round "-"]
[White "RuslanChessN"]
[Black "BishopofWells"]
[Result "0-1"]
[WhiteElo "1932"]
[BlackElo "1550"]
[TimeControl "300"]
[EndTime "5:42:51 PDT"]
[Termination "BishopofWells won by resignation"]

1. d4 {[%clk 0:04:55.2]} 1... d5 {[%clk 0:04:58.5]} 2. c4 {[%clk 0:04:53.9]}
2... e6 {[%clk 0:04:57.6]} 3. Nc3 {[%clk 0:04:52.6]} 3... Nf6 {[%clk 0:04:56.7]}
4. Bg5 {[%clk 0:04:50.7]} 4... Be7 {[%clk 0:04:55.6]} 5. Nf3 {[%clk 0:04:48.9]}
5... h6 {[%clk 0:04:53.9]} 6. Bh4 {[%clk 0:04:45.9]} 6... O-O {[%clk 0:04:51.5]}
7. e3 {[%clk 0:04:45.3]} 7... c6 {[%clk 0:04:48.9]} 8. Qc2 {[%clk 0:04:37.5]}
8... Nbd7 {[%clk 0:04:44.9]} 9. cxd5 {[%clk 0:04:35.9]} 9... exd5 {[%clk
0:04:43.2]} 10. Bd3 {[%clk 0:04:34.1]} 10... Re8 {[%clk 0:04:41.8]} 11. O-O
{[%clk 0:04:32.1]} 11... Nf8 {[%clk 0:04:38.9]} 12. Rab1 {[%clk 0:04:29.7]}
12... Bg4 {[%clk 0:04:18.2]} 13. Ne5 {[%clk 0:04:27.6]} 13... Be6 {[%clk
0:04:15.5]} 14. b4 {[%clk 0:04:25.5]} 14... N8d7 {[%clk 0:04:13.2]} 15. Bg3
{[%clk 0:04:22]} 15... Nb6 {[%clk 0:04:03.1]} 16. b5 {[%clk 0:04:19.2]} 16... c5
{[%clk 0:03:51.6]} 17. a4 {[%clk 0:04:06.1]} 17... c4 {[%clk 0:03:42.7]} 18. Bf5
{[%clk 0:04:03.1]} 18... Qc8 {[%clk 0:03:30]} 19. a5 {[%clk 0:03:56.4]} 19...
Bxf5 {[%clk 0:03:26.5]} 0-1

[Event "Live Chess"]
[Site "Chess.com"]
[Date "2024.06.02"]
[Round "-"]
[White "stevochess11"]
[Black "ameetghasi100"]
[Result "0-1"]
[WhiteElo "1682"]
[BlackElo "2760"]
[TimeControl "300"]
[EndTime "5:43:10 PDT"]
[Termination "ameetghasi100 won by resignation"]

1. d4 {[%clk 0:04:55.9]} 1... a6 {[%clk 0:04:59.3]} 2. f3 {[%clk 0:04:51.2]}
2... g6 {[%clk 0:04:58.8]} 3. c3 {[%clk 0:04:49.9]} 3... d5 {[%clk 0:04:58.3]}
4. Nd2 {[%clk 0:04:48.4]} 4... c5 {[%clk 0:04:58.1]} 5. e4 {[%clk 0:04:43.6]}
5... Nc6 {[%clk 0:04:57.8]} 6. e5 {[%clk 0:04:42.3]} 6... Nh6 {[%clk 0:04:56.5]}
7. Nb3 {[%clk 0:04:39.4]} 7... c4 {[%clk 0:04:52.9]} 8. Nc5 {[%clk 0:04:35.7]}
8... b6 {[%clk 0:04:52.1]} 9. Na4 {[%clk 0:04:34.6]} 9... Nf5 {[%clk 0:04:49.3]}
10. g4 {[%clk 0:04:32.6]} 10... Ng7 {[%clk 0:04:47.7]} 11. f4 {[%clk 0:04:30.3]}
11... h5 {[%clk 0:04:46.7]} 12. Be2 {[%clk 0:04:27.3]} 12... hxg4 {[%clk
0:04:44.6]} 13. Bxg4 {[%clk 0:04:26.3]} 13... Nf5 {[%clk 0:04:43.6]} 14. Nf3
{[%clk 0:04:17.5]} 14... Ne3 {[%clk 0:04:40.8]} 15. Bxe3 {[%clk 0:04:11.5]}
15... Bxg4 {[%clk 0:04:39.5]} 16. Qe2 {[%clk 0:04:04.2]} 16... Rh3 {[%clk
0:04:36.9]} 17. Rf1 {[%clk 0:04:02.4]} 17... Rb8 {[%clk 0:04:35.8]} 18. O-O-O
{[%clk 0:03:54.7]} 18... Qc8 {[%clk 0:04:34.7]} 19. b3 {[%clk 0:03:51.6]} 19...
Rxf3 {[%clk 0:04:27.5]} 20. Rxf3 {[%clk 0:03:49.6]} 20... e6 {[%clk 0:04:27.2]}
21. bxc4 {[%clk 0:03:42.5]} 21... Na5 {[%clk 0:04:22.1]} 22. Rg1 {[%clk
0:03:34]} 22... Bxf3 {[%clk 0:04:20.6]} 23. Qxf3 {[%clk 0:03:33]} 23... Qxc4
{[%clk 0:04:20.3]} 24. Qd1 {[%clk 0:03:22.1]} 24... b5 {[%clk 0:04:19.3]} 25.
Nc5 {[%clk 0:03:19]} 25... Bxc5 {[%clk 0:04:17.3]} 26. dxc5 {[%clk 0:03:17.3]}
26... Qxc3+ {[%clk 0:04:17]} 27. Kb1 {[%clk 0:03:15.9]} 27... Qxe3 {[%clk
0:04:16.6]} 28. Re1 {[%clk 0:03:08.2]} 28... Qxc5 {[%clk 0:04:15.8]} 0-1

[Event "Live Chess"]
[Site "Chess.com"]
[Date "2024.06.02"]
[Round "-"]
[White "GwaryTek"]
[Black "CarmelJane"]
[Result "1-0"]
[WhiteElo "1861"]
[BlackElo "1989"]
[TimeControl "300"]
[EndTime "5:43:27 PDT"]
[Termination "GwaryTek won by resignation"]

1. d4 {[%clk 0:04:58.4]} 1... g6 {[%clk 0:04:58.3]} 2. c4 {[%clk 0:04:57]} 2...
Bg7 {[%clk 0:04:56.8]} 3. Nf3 {[%clk 0:04:56.4]} 3... c5 {[%clk 0:04:55.2]} 4.
Nc3 {[%clk 0:04:54.8]} 4... cxd4 {[%clk 0:04:53.2]} 5. Nxd4 {[%clk 0:04:54.7]}
5... Nc6 {[%clk 0:04:52.4]} 6. Nc2 {[%clk 0:04:53.5]} 6... Nf6 {[%clk 0:04:51]}
7. g3 {[%clk 0:04:52.6]} 7... O-O {[%clk 0:04:50.5]} 8. Bg2 {[%clk 0:04:52.1]}
8... d6 {[%clk 0:04:49.6]} 9. O-O {[%clk 0:04:51.6]} 9... Bd7 {[%clk 0:04:48.9]}
10. b3 {[%clk 0:04:48.1]} 10... Rb8 {[%clk 0:04:48.3]} 11. Bb2 {[%clk
0:04:46.5]} 11... a6 {[%clk 0:04:47.6]} 12. Nd5 {[%clk 0:04:37.5]} 12... Nxd5
{[%clk 0:04:24.6]} 13. Bxg7 {[%clk 0:04:30.5]} 13... Kxg7 {[%clk 0:04:24.5]} 14.
cxd5 {[%clk 0:04:19.2]} 14... Na7 {[%clk 0:04:17.7]} 15. Qd4+ {[%clk 0:04:16.2]}
15... f6 {[%clk 0:04:15.4]} 16. Qxa7 {[%clk 0:04:13.6]} 16... b6 {[%clk
0:03:58.1]} 17. Qxa6 {[%clk 0:04:00.7]} 17... Bf5 {[%clk 0:03:46.1]} 18. Nd4
{[%clk 0:03:56.8]} 1-0

[Event "Live Chess"]
[Site "Chess.com"]
[Date "2024.06.02"]
[Round "-"]
[White "missedJariChance"]
[Black "Mikhail_Golubev"]
[Result "0-1"]
[WhiteElo "1375"]
[BlackElo "2484"]
[TimeControl "300"]
[EndTime "5:43:37 PDT"]
[Termination "Mikhail_Golubev won by resignation"]

1. b3 {[%clk 0:04:55.7]} 1... d6 {[%clk 0:04:58]} 2. Bb2 {[%clk 0:04:54.4]} 2...
Nd7 {[%clk 0:04:57.1]} 3. Nf3 {[%clk 0:04:52.3]} 3... e5 {[%clk 0:04:55.6]} 4.
e3 {[%clk 0:04:50.9]} 4... Ngf6 {[%clk 0:04:51.1]} 5. Be2 {[%clk 0:04:48.8]}
5... g6 {[%clk 0:04:47.9]} 6. O-O {[%clk 0:04:42.9]} 6... Bg7 {[%clk 0:04:46.3]}
7. d3 {[%clk 0:04:33.7]} 7... O-O {[%clk 0:04:34.9]} 8. e4 {[%clk 0:04:31.4]}
8... Nh5 {[%clk 0:04:22.5]} 9. Nbd2 {[%clk 0:04:26.2]} 9... Nf4 {[%clk
0:04:16.6]} 10. Nc4 {[%clk 0:04:07.8]} 10... f5 {[%clk 0:03:57.6]} 11. d4 {[%clk
0:03:47.8]} 11... fxe4 {[%clk 0:03:52.8]} 12. Nh4 {[%clk 0:03:34.1]} 12... Qxh4
{[%clk 0:03:37.7]} 13. dxe5 {[%clk 0:03:28.9]} 13... d5 {[%clk 0:03:11.3]} 14.
g3 {[%clk 0:03:22.5]} 14... Nxe2+ {[%clk 0:02:50.2]} 15. Qxe2 {[%clk 0:03:17.6]}
15... Qe7 {[%clk 0:02:43.3]} 16. Ne3 {[%clk 0:03:10.7]} 16... c6 {[%clk
0:02:40.7]} 17. c4 {[%clk 0:03:01.2]} 17... Nxe5 {[%clk 0:02:36.4]} 18. cxd5
{[%clk 0:02:55]} 18... Nf3+ {[%clk 0:02:24.6]} 19. Kh1 {[%clk 0:02:53.3]} 19...
Qd7 {[%clk 0:02:14.3]} 20. g4 {[%clk 0:02:19.2]} 20... Qd6 {[%clk 0:02:03.7]}
0-1

[Event "Live Chess"]
[Site "Chess.com"]
[Date "2024.06.02"]
[Round "-"]
[White "TC2304"]
[Black "KeithArkell"]
[Result "1/2-1/2"]
[WhiteElo "2338"]
[BlackElo "2416"]
[TimeControl "300"]
[EndTime "5:44:22 PDT"]
[Termination "Game drawn by agreement"]

1. d4 {[%clk 0:04:53.5]} 1... e6 {[%clk 0:04:56.7]} 2. Nf3 {[%clk 0:04:53.2]}
2... Nf6 {[%clk 0:04:47.3]} 3. Bg5 {[%clk 0:04:50.8]} 3... c5 {[%clk 0:04:46.3]}
4. e3 {[%clk 0:04:40.2]} 4... cxd4 {[%clk 0:04:44.7]} 5. exd4 {[%clk 0:04:36.8]}
5... Be7 {[%clk 0:04:44]} 6. Bd3 {[%clk 0:04:30.2]} 6... O-O {[%clk 0:04:42.5]}
7. c3 {[%clk 0:04:22.4]} 7... b6 {[%clk 0:04:41.6]} 8. Nbd2 {[%clk 0:04:21.3]}
8... Ba6 {[%clk 0:04:40.5]} 9. Bxa6 {[%clk 0:04:17.5]} 9... Nxa6 {[%clk
0:04:39.6]} 10. O-O {[%clk 0:04:11.7]} 10... Nc7 {[%clk 0:04:38.1]} 11. a4
{[%clk 0:04:10.3]} 11... a6 {[%clk 0:04:35.9]} 12. Ne5 {[%clk 0:04:04.1]} 12...
Nfd5 {[%clk 0:04:26]} 13. Bxe7 {[%clk 0:04:02.6]} 13... Qxe7 {[%clk 0:04:25.1]}
14. a5 {[%clk 0:03:51.4]} 14... b5 {[%clk 0:04:24.2]} 15. Nb3 {[%clk 0:03:44.8]}
15... d6 {[%clk 0:04:23]} 16. Nd3 {[%clk 0:03:39.6]} 16... Qd7 {[%clk
0:04:21.7]} 17. Qg4 {[%clk 0:03:25]} 17... Nf6 {[%clk 0:04:19.7]} 18. Qg3 {[%clk
0:03:18]} 18... Ncd5 {[%clk 0:04:17.9]} 19. Rae1 {[%clk 0:03:14.8]} 19... Qc6
{[%clk 0:04:16.7]} 20. f4 {[%clk 0:03:11.3]} 20... Ne7 {[%clk 0:04:11.5]} 21.
Nd2 {[%clk 0:02:48.9]} 21... Nf5 {[%clk 0:04:06.8]} 22. Qh3 {[%clk 0:02:47]}
22... h5 {[%clk 0:04:04.9]} 23. Nf2 {[%clk 0:02:42.6]} 23... Qc7 {[%clk
0:03:52.1]} 24. Nde4 {[%clk 0:02:35.5]} 24... Nxe4 {[%clk 0:03:47.5]} 25. Nxe4
{[%clk 0:02:35.4]} 25... g6 {[%clk 0:03:36.5]} 26. Rf3 {[%clk 0:02:31.3]} 26...
Kg7 {[%clk 0:03:34.2]} 27. Ng3 {[%clk 0:02:23.3]} 27... Nxg3 {[%clk 0:03:27]}
28. Qxg3 {[%clk 0:02:18.6]} 28... Qxa5 {[%clk 0:03:09.2]} 29. f5 {[%clk
0:02:17.5]} 29... exf5 {[%clk 0:03:08.6]} 30. Qxd6 {[%clk 0:02:14.2]} 30... Rfe8
{[%clk 0:03:07.2]} 31. Ref1 {[%clk 0:02:03.8]} 31... Re2 {[%clk 0:02:59.5]} 32.
Qg3 {[%clk 0:01:59.2]} 32... Kh7 {[%clk 0:02:55.8]} 33. Qg5 {[%clk 0:01:50.4]}
33... Qd8 {[%clk 0:02:48.8]} 34. Rxf5 {[%clk 0:01:41.2]} 34... Qxg5 {[%clk
0:02:47.1]} 35. Rxg5 {[%clk 0:01:41.1]} 35... Kg7 {[%clk 0:02:45.6]} 36. Rc5
{[%clk 0:01:37.3]} 36... Rxb2 {[%clk 0:02:42.5]} 37. Rc7 {[%clk 0:01:36.5]}
37... Rf8 {[%clk 0:02:41.5]} 38. Ra1 {[%clk 0:01:35]} 38... Re8 {[%clk
0:02:33.6]} 39. Rf1 {[%clk 0:01:31.6]} 39... Rf8 {[%clk 0:02:32.9]} 40. Ra1
{[%clk 0:01:31.2]} 40... b4 {[%clk 0:02:22.8]} 41. cxb4 {[%clk 0:01:27.6]} 41...
Rxb4 {[%clk 0:02:21.5]} 42. Rxa6 {[%clk 0:01:25.3]} 42... Rxd4 {[%clk
0:02:19.9]} 43. Raa7 {[%clk 0:01:20.6]} 43... Rf4 {[%clk 0:02:18.3]} 44. Ra1
{[%clk 0:01:12.2]} 44... h4 {[%clk 0:02:15.3]} 45. Rac1 {[%clk 0:01:09.3]} 45...
Ra8 {[%clk 0:02:12.8]} 46. R7c4 {[%clk 0:01:07.8]} 46... Rxc4 {[%clk 0:02:10.1]}
47. Rxc4 {[%clk 0:01:07.7]} 47... g5 {[%clk 0:02:09.5]} 48. h3 {[%clk
0:01:06.2]} 48... Ra2 {[%clk 0:02:07]} 49. Rc8 {[%clk 0:01:03.4]} 49... Kg6
{[%clk 0:02:05.8]} 50. Rg8+ {[%clk 0:01:02.4]} 50... Kf5 {[%clk 0:02:05.1]} 51.
Rb8 {[%clk 0:01:01.6]} 51... Re2 {[%clk 0:02:03.2]} 52. Rb5+ {[%clk 0:01:00.2]}
52... Re5 {[%clk 0:02:02.4]} 53. Rb7 {[%clk 0:00:59.6]} 53... f6 {[%clk
0:02:01.6]} 54. Rb6 {[%clk 0:00:59.4]} 54... Rd5 {[%clk 0:01:59.8]} 55. Ra6
{[%clk 0:00:57.8]} 55... Ke5 {[%clk 0:01:58.8]} 56. Rb6 {[%clk 0:00:56.6]} 56...
f5 {[%clk 0:01:58.1]} 57. Rb8 {[%clk 0:00:56]} 57... Rd4 {[%clk 0:01:57.3]} 58.
Re8+ {[%clk 0:00:55.3]} 58... Kf4 {[%clk 0:01:56.6]} 59. Kh2 {[%clk 0:00:48.2]}
59... Rd2 {[%clk 0:01:54]} 60. Rf8 {[%clk 0:00:46.4]} 60... Re2 {[%clk
0:01:51.7]} 61. Rf7 {[%clk 0:00:44.4]} 61... Re5 {[%clk 0:01:50.7]} 62. Rf8
{[%clk 0:00:43.9]} 62... Ke3 {[%clk 0:01:49.8]} 63. Ra8 {[%clk 0:00:43.4]} 63...
Kf4 {[%clk 0:01:34.9]} 64. Ra4+ {[%clk 0:00:39.9]} 64... Re4 {[%clk 0:01:34.2]}
65. Ra3 {[%clk 0:00:39.7]} 65... g4 {[%clk 0:01:29.6]} 66. hxg4 {[%clk 0:00:35]}
66... fxg4 {[%clk 0:01:28.7]} 67. g3+ {[%clk 0:00:33.9]} 67... hxg3+ {[%clk
0:01:27.9]} 68. Rxg3 {[%clk 0:00:33.7]} 68... Re2+ {[%clk 0:01:11.2]} 69. Rg2
{[%clk 0:00:31.8]} 69... g3+ {[%clk 0:01:10.1]} 70. Kh1 {[%clk 0:00:20.1]} 70...
Re1+ {[%clk 0:01:08.3]} 71. Rg1 {[%clk 0:00:19.2]} 71... Re8 {[%clk 0:01:07.3]}
72. Ra1 {[%clk 0:00:18.5]} 72... Kg4 {[%clk 0:01:02.2]} 73. Kg2 {[%clk
0:00:17.2]} 73... Re2+ {[%clk 0:01:00.6]} 74. Kg1 {[%clk 0:00:15.8]} 74... Kh3
{[%clk 0:00:59.8]} 75. Rb1 {[%clk 0:00:15.1]} 75... Rh2 {[%clk 0:00:56.3]} 76.
Ra1 {[%clk 0:00:14.4]} 76... Rd2 {[%clk 0:00:54.1]} 77. Rb1 {[%clk 0:00:13.9]}
1/2-1/2

[Event "Live Chess"]
[Site "Chess.com"]
[Date "2024.06.02"]
[Round "-"]
[White "alicechristina"]
[Black "MagnersCarlsberg2870"]
[Result "1-0"]
[WhiteElo "1949"]
[BlackElo "1751"]
[TimeControl "300"]
[EndTime "5:44:25 PDT"]
[Termination "alicechristina won by resignation"]

1. c4 {[%clk 0:04:54.1]} 1... e5 {[%clk 0:04:54.9]} 2. Nc3 {[%clk 0:04:53]} 2...
Bb4 {[%clk 0:04:53.6]} 3. g3 {[%clk 0:04:51.5]} 3... Bxc3 {[%clk 0:04:52.4]} 4.
bxc3 {[%clk 0:04:49.3]} 4... d6 {[%clk 0:04:51.1]} 5. Bg2 {[%clk 0:04:47.9]}
5... f6 {[%clk 0:04:49.6]} 6. Rb1 {[%clk 0:04:46.4]} 6... Nc6 {[%clk 0:04:46.8]}
7. d4 {[%clk 0:04:45.1]} 7... Nge7 {[%clk 0:04:34]} 8. e4 {[%clk 0:04:39.2]}
8... O-O {[%clk 0:04:30.1]} 9. Ne2 {[%clk 0:04:37.5]} 9... b6 {[%clk 0:04:21.2]}
10. O-O {[%clk 0:04:36.2]} 10... Bg4 {[%clk 0:04:18.8]} 11. f3 {[%clk
0:04:34.3]} 11... Bd7 {[%clk 0:04:16]} 12. f4 {[%clk 0:04:32.5]} 12... Qc8
{[%clk 0:04:14.1]} 13. f5 {[%clk 0:04:31.2]} 13... g6 {[%clk 0:04:03.3]} 14. g4
{[%clk 0:04:30]} 14... h5 {[%clk 0:03:49.2]} 15. gxh5 {[%clk 0:04:27.8]} 15...
gxf5 {[%clk 0:03:47.8]} 16. exf5 {[%clk 0:04:25.7]} 16... Bxf5 {[%clk
0:03:44.6]} 17. Bh6 {[%clk 0:04:21.9]} 17... Rf7 {[%clk 0:03:32.4]} 18. Ng3
{[%clk 0:04:18.6]} 18... Bxb1 {[%clk 0:03:30.5]} 19. Qxb1 {[%clk 0:04:16.9]}
19... Qg4 {[%clk 0:03:20.7]} 20. Bf3 {[%clk 0:04:09.8]} 20... Qh3 {[%clk
0:03:13]} 21. Bxc6 {[%clk 0:04:08.2]} 21... Nxc6 {[%clk 0:03:10.3]} 22. Qg6+
{[%clk 0:04:06.5]} 1-0

[Event "Live Chess"]
[Site "Chess.com"]
[Date "2024.06.02"]
[Round "-"]
[White "Queensandpawns"]
[Black "NAZRIZ1977"]
[Result "1-0"]
[WhiteElo "2278"]
[BlackElo "2090"]
[TimeControl "300"]
[EndTime "5:44:32 PDT"]
[Termination "Queensandpawns won by resignation"]

1. e4 {[%clk 0:04:58.4]} 1... d6 {[%clk 0:04:57]} 2. d4 {[%clk 0:04:57]} 2...
Nf6 {[%clk 0:04:56.6]} 3. Nc3 {[%clk 0:04:56.6]} 3... e5 {[%clk 0:04:55.8]} 4.
Be3 {[%clk 0:04:56.4]} 4... Nbd7 {[%clk 0:04:54.6]} 5. Qd2 {[%clk 0:04:55.6]}
5... Be7 {[%clk 0:04:53.2]} 6. Nf3 {[%clk 0:04:54.9]} 6... c6 {[%clk 0:04:52.7]}
7. O-O-O {[%clk 0:04:54.1]} 7... Qc7 {[%clk 0:04:47.6]} 8. Bc4 {[%clk
0:04:52.2]} 8... b5 {[%clk 0:04:46.4]} 9. Bb3 {[%clk 0:04:45.2]} 9... b4 {[%clk
0:04:43.7]} 10. Ne2 {[%clk 0:04:43.7]} 10... Nxe4 {[%clk 0:04:40.6]} 11. Qd3
{[%clk 0:04:42.6]} 11... d5 {[%clk 0:04:31.4]} 12. dxe5 {[%clk 0:04:33.6]} 12...
a5 {[%clk 0:04:30.7]} 13. Bf4 {[%clk 0:04:23.1]} 13... Bb7 {[%clk 0:04:01.3]}
14. e6 {[%clk 0:04:20.7]} 14... Qb6 {[%clk 0:03:55.1]} 15. exd7+ {[%clk
0:04:19.2]} 15... Kf8 {[%clk 0:03:55]} 16. Be3 {[%clk 0:04:14.7]} 16... Qc7
{[%clk 0:03:53]} 17. Nf4 {[%clk 0:04:08]} 17... Ba6 {[%clk 0:03:46.3]} 18. Qd4
{[%clk 0:04:02.2]} 18... Bf6 {[%clk 0:03:45.2]} 19. Qb6 {[%clk 0:03:55.8]} 19...
Qxd7 {[%clk 0:03:44.3]} 20. Nxd5 {[%clk 0:03:48.1]} 1-0

[Event "Live Chess"]
[Site "Chess.com"]
[Date "2024.06.02"]
[Round "-"]
[White "vincents82"]
[Black "imchessive"]
[Result "1-0"]
[WhiteElo "1993"]
[BlackElo "1592"]
[TimeControl "300"]
[EndTime "5:45:04 PDT"]
[Termination "vincents82 won by checkmate"]

1. e4 {[%clk 0:04:57.1]} 1... c5 {[%clk 0:04:59.1]} 2. Nf3 {[%clk 0:04:56]} 2...
e6 {[%clk 0:04:58.4]} 3. d4 {[%clk 0:04:55.1]} 3... cxd4 {[%clk 0:04:58.3]} 4.
Nxd4 {[%clk 0:04:54.2]} 4... a6 {[%clk 0:04:57]} 5. g3 {[%clk 0:04:51.9]} 5...
Qc7 {[%clk 0:04:53.7]} 6. Bg2 {[%clk 0:04:50.1]} 6... Nf6 {[%clk 0:04:37.2]} 7.
O-O {[%clk 0:04:47.6]} 7... Nc6 {[%clk 0:04:35.9]} 8. Nc3 {[%clk 0:04:45.1]}
8... Rb8 {[%clk 0:04:09]} 9. Re1 {[%clk 0:04:41.9]} 9... Nxd4 {[%clk 0:03:59.7]}
10. Qxd4 {[%clk 0:04:38.3]} 10... Bc5 {[%clk 0:03:57.7]} 11. Bf4 {[%clk
0:04:33.6]} 11... Qb6 {[%clk 0:03:31.2]} 12. Qd3 {[%clk 0:04:23.8]} 12... Bxf2+
{[%clk 0:03:25.4]} 13. Kh1 {[%clk 0:04:22.5]} 13... Bxe1 {[%clk 0:02:58.9]} 14.
Bxb8 {[%clk 0:04:20.9]} 14... Ng4 {[%clk 0:02:48.5]} 15. Nd1 {[%clk 0:03:58.2]}
15... O-O {[%clk 0:01:52.5]} 16. Bd6 {[%clk 0:03:52.2]} 16... Re8 {[%clk
0:01:32.6]} 17. h3 {[%clk 0:03:51]} 17... Nf2+ {[%clk 0:01:23.4]} 18. Nxf2
{[%clk 0:03:49.4]} 18... Bxf2 {[%clk 0:01:23.3]} 19. Rf1 {[%clk 0:03:44.4]}
19... Bc5 {[%clk 0:00:51.8]} 20. e5 {[%clk 0:03:35.2]} 20... Bxd6 {[%clk
0:00:49.9]} 21. exd6 {[%clk 0:03:29.2]} 21... Qxb2 {[%clk 0:00:48.4]} 22. Qf3
{[%clk 0:03:23.7]} 22... f5 {[%clk 0:00:39.3]} 23. g4 {[%clk 0:03:22.1]} 23...
Qe5 {[%clk 0:00:33.3]} 24. gxf5 {[%clk 0:03:20.6]} 24... exf5 {[%clk 0:00:33.2]}
25. Qd5+ {[%clk 0:02:58.2]} 25... Qxd5 {[%clk 0:00:31.9]} 26. Bxd5+ {[%clk
0:02:57.1]} 26... Kh8 {[%clk 0:00:30.8]} 27. Rxf5 {[%clk 0:02:56.3]} 27... b5
{[%clk 0:00:29.2]} 28. Kg2 {[%clk 0:02:47.3]} 28... Re2+ {[%clk 0:00:28]} 29.
Kf3 {[%clk 0:02:46]} 29... Rxc2 {[%clk 0:00:27.9]} 30. Rf8# {[%clk 0:02:44.8]}
1-0